{"text_format":"1","workbook":"xlsx","n_sheets":6,"sheets":["Page de garde","Hiérachisation","Document unique ","Pénibilité","Fiche d'exposition","Aide Fiche de danger"],"not_rendered":{"charts":0,"images":5,"macros":1,"external_links":0,"defined_names":6,"comments":0,"pivot_tables":0},"unopened":[],"bounds":{"document_bytes":16777216,"sheet_cells":100000,"rows_first":2000,"rows_last":500,"rows_between":2000,"halvings":0,"cell_chars":16384,"cell_head_chars":4096},"cells_cut":0,"cells_raw":0,"read":"whole","date_system":"1900"}

{"sheet":"Page de garde","index":0,"n_rows":43,"n_cols":2,"rows_kept":43,"cut":false,"hidden":false,"merged":[[0,3,0,4],[65,2,65,5],[66,2,66,5],[1,0,1,6]]}
[]
["Document Unique d'évaluation des risques"]
[]
[]
[]
[null,"Créé le :"]
[null,"Par :"]
[]
[null,"Mise à jour le :"]
[null,"Par :"]
[]
[]
[]
[]
[]
[]
[null,"Société :"]
[]
[]
[null,"Adresse :"]
[]
[]
[]
[null,"Téléphone :"]
[null,"Fax :"]
[null,"E-mail :"]
[]
[]
[null,"Descriptif de l'activité :"]
[]
[]
[]
[]
[null,"Responsable du site :"]
[]
[]
[null,"Responsable du projet : "]
[]
[]
[null,"Personnes ressources :"]
[]
[]
[null,"Unité de travail :"]

{"sheet":"Hiérachisation","index":1,"n_rows":62,"n_cols":8,"rows_kept":62,"cut":false,"hidden":false,"merged":[[56,1,59,1],[22,2,22,4],[12,2,12,4],[20,2,20,4],[1,1,1,6],[3,1,3,6],[5,1,5,2],[5,3,5,4],[5,5,5,6],[61,2,61,5],[32,2,32,5],[41,2,41,5],[35,1,38,1],[39,2,39,5],[52,4,53,4],[53,3,55,3],[54,4,55,4],[57,5,58,5],[57,4,59,4],[56,3,59,3],[52,2,55,2],[56,2,59,2],[44,1,47,1],[48,1,51,1],[52,1,55,1],[44,0,59,0],[44,7,59,7],[44,2,45,2],[45,3,46,3],[46,4,47,4],[48,4,49,4],[52,5,53,5],[48,5,49,5],[44,5,47,5],[44,4,45,4],[48,2,49,2],[49,3,50,3],[50,2,51,2],[50,4,51,4],[50,5,51,5],[54,5,55,5]]}
[]
[null,"Evaluation des risques"]
[]
[null,"Critères d’évaluation :"]
[]
[null,"Gravité ",null,"Fréquence d'exposition ",null,"Maitrise"]
[null,null,"Détails des niveaux",null,"Détails des niveaux",null,"Détails des niveaux"]
[null,"Faible",1,"Annuelle",1,"Absente",1]
[null,"Modérée",4,"Mensuelle",4,"Faible",0.5]
[null,"Grave",20,"Hebdomadaire",10,"Moyenne",0.2]
[null,"Très grave",100,"Journalière",50,"Forte",0.05]
[]
[null,null,"Signification des critères"]
[]
[null,null,"Gravité","Fréquence d'exposition","Maitrise"]
[null,null,"Faible\nPresque accident\nPas d'arrêt de travail\nPas de soin à l'extérieur","Annuelle\nQuelques jours par an","Absente\nPas de mesures ou inadaptées"]
[null,null,"Modérée\nArrêt de travail inférieur à 7jours\nPas de suivi médical ","Mensuelle\nQuelques jours par mois\nQuelques semaines par an","Faible\n1 élément de maitrise (dans le respect des 9 principes généraux de prévention)\nLa prévention/protection existe mais n'est pas toujours efficace ou mis en œuvre "]
[null,null,"Grave\nArrêt de travail supérieur à 7jours\nSuivi médical ou soins répétés\nMaladie professionnelle","Hebdomadaire\nQuelques jours par semaine\nQuelques mois par an \nTous les jours - de 50% du temps","Moyenne\n2 éléments de maitrise (dans le respect des 9 principes généraux de prévention)\nLa prévention/protection existe mais peut être complétée ou améliorée"]
[null,null,"Très grave\nIncapacité Permanente Partielle\nMaladie professionnelle irréversible\nMort","Journalière\nTous les jours + de 50% du temps","Forte\nLa prévention/protection inclut des mesures d'ordre collective et individuelle sur les plans technique, organisationnel et humain"]
[]
[null,null,"Hiérarchisation des couples danger/risque/maitrise :"]
[]
[null,null,"Note globale = Gravité x Fréquence x Maitrise"]
[]
[null,null,"Note globale","Evaluation globale","Priorité"]
[null,null,"Note < 10","Risque mineur\nActions à long terme","Faible\n4"]
[null,null,"10 ≤ Note < 50","Risque secondaire\nAcrtion à envisager à moyen terme","Moyenne\n3"]
[null,null,"50 ≤ Note ≤ 200","Risque important\nAction à envisager à court terme","Forte\n2"]
[null,null,"200 < Note ≤ 5000","Risque majeur\nAction à envisager en priorité","URGENT\n1"]
[]
[]
[]
[null,null,"Tableau Gravité / Fréquence"]
[]
[]
[null,"GRAVITE","Priorité 2\nForte","Priorité 1 \nUrgent","Priorité 1 \nUrgent","Priorité 1 \nUrgent"]
[null,null,"Priorité 3\nMoyenne","Priorité 2\nForte","Priorité 2 \nForte","Priorité 1 \nUrgent"]
[null,null,"Priorité 4\nFaible","Priorité 3\nMoyenne","Priorité 3\nMoyenne","Priorité 2\nForte"]
[null,null,"Priorité 4\nFaible","Priorité 4\nFaible","Priorité 3\nMoyenne","Priorité 2\nForte"]
[null,null,"FREQUENCE"]
[]
[null,null,"Tableau Gravité / Fréquence / Maitrise"]
[]
[]
["GRAVITE","Très grave","Priorité 2\nForte","Priorité 1 \nUrgent","Priorité 1 \nUrgent","Priorité 1 \nUrgent","Absente","MAITRISE"]
[null,null,null,"Priorité 2\nForte",null,null,"Faible"]
[null,null,"Priorité 3\nMoyenne",null,"Priorité 2\nForte",null,"Moyenne"]
[null,null,"Priorité 4\nFaible","Priorité 3\nMoyenne",null,null,"Forte"]
[null,"Grave","Priorité 3\nMoyenne","Priorité 2\nForte","Priorité 2\nForte","Priorité 1 \nUrgent","Absente"]
[null,null,null,"Priorité 3\nMoyenne",null,null,"Faible"]
[null,null,"Priorité 4\nFaible",null,"Priorité 3\nMoyenne","Priorité 2\nForte","Moyenne"]
[null,null,null,"Priorité 4\nFaible",null,null,"Forte"]
[null,"Modéré","Priorité 4\nFaible","Priorité 3\nMoyenne","Priorité 3\nMoyenne","Priorité 2\nForte","Absente"]
[null,null,null,"Priorité 4\nFaible",null,null,"Faible"]
[null,null,null,null,"Priorité 4\nFaible","Priorité 3\nMoyenne","Moyenne"]
[null,null,null,null,null,null,"Forte"]
[null,"Faible","Priorité 4\nFaible","Priorité 4\nFaible","Priorité 3\nMoyenne","Priorité 2\nForte","Absente"]
[null,null,null,null,"Priorité 4\nFaible","Priorité 3\nMoyenne","Faible"]
[null,null,null,null,null,null,"Moyenne"]
[null,null,null,null,null,"Priorité 4\nFaible","Forte"]
[null,null,"Annuelle","Mensuelle","Hebdomadaire","Journalière"]
[null,null,"FREQUENCE"]

{"sheet":"Document unique ","index":2,"n_rows":71,"n_cols":26,"rows_kept":71,"cut":false,"hidden":false,"merged":[[32,23,32,25],[30,0,30,21],[32,12,33,12],[32,0,33,0],[32,2,33,2],[32,1,33,1],[32,5,33,5],[32,4,33,4],[32,6,32,8],[32,3,33,3],[32,15,32,16],[32,22,33,22],[32,21,33,21],[32,20,33,20],[32,17,32,19],[30,23,30,24]]}
[null,null,"Agents chimique dangereux\n(produits, émissions, déchets) ","Oui","Annuelle","Faible",null,null,null,null,null,null,"Absente"]
[null,null,"Biologique","Non","Mensuelle","Modérée",null,null,null,null,null,null,"Faible"]
[null,null,"Bruit","Oui","Hebdomadaire ","Grave",null,null,null,null,null,null,"Moyenne"]
[null,null,"Chute de hauteur","Non","Journalière","Très grave",null,null,null,null,null,null,"Forte"]
[null,null,"Chute de plain pied","Non","Quelques jours par an","Presque accident",null,null,null,null,null,null,"1 éléments de maitrise"]
[null,null,"Chute d'objet","Non","Quelques jours par mois","Pas d'arrêt de travail",null,null,null,null,null,null,"2 éléments de maitrise"]
[null,null,"Circulation interne","Non","Quelques semaines par an","Pas de soin à l'extérieur"]
[null,null,"Circulation routière","Non","Quelques jours par semaine","Arrêt de travail inférieur à 7jours"]
[null,null,"Déchets","Non","Quelques mois par an","Pas de suivi médical "]
[null,null,"Eclairage","Non","Tous les jours - de 50% du temps","Arrêt de travail supérieur à 7jours"]
[null,null,"Electrique","Non","Tous les jours + de 50% du temps","Maladie professionnelle"]
[null,null,"Fluides","Non",null,"Suivi médical ou soins répétés"]
[null,null,"Incendie/Explosion","Non",null,"Incapacité Permanente Partielle"]
[null,null,"Intervention d'entreprise \nextérieure /  Intérimaire","Non",null,"Mort",100]
[null,null,"Machines et outils","Non",null,"Maladie professionnelle irréversible",null,null,null,null,null,null,null,null,null,null,null,null,null,null,"A planifier / A réaliser"]
[null,null,"Manutention manuelle","Oui",null,"Mort",null,null,null,null,null,null,null,null,null,null,null,null,null,null,"En réalisation"]
[null,null,"Manutention mécanique","Non",null,null,null,null,null,null,null,null,null,null,null,null,null,null,null,null,"Réalisé / Archivé"]
[null,null,"Manque d'organisation de la\n sécurité et des secours","Non"]
[null,null,"Postures pénibles","Oui"]
[null,null,"Psychosocial","Non"]
[null,null,"Rayonnement ionisant","Non"]
[null,null,"Rayonnement non ionisant ","Non"]
[null,null,"Thermique","Oui"]
[null,null,"Travail en milieu hyperbare","Oui"]
[null,null,"Travail isolé","Non"]
[null,null,"Travail répétitif","Oui",null,null,null,null,null,null,null,null,null,null,null,null,null,null,null,null,null,null,null,null,null,"Avérée"]
[null,null,"Travail sur écran","Non",null,null,null,null,null,null,null,null,null,null,null,null,null,null,null,null,null,null,null,null,null,"Maitrisée"]
[null,null,"Vibration","Oui"]
[]
[]
["Modèle de Document unique à compléter par vos soins",null,null,null,null,null,null,null,null,null,null,null,null,null,null,null,null,null,null,null,null,null,null,"Effectif de l'entrprise",null,1]
[]
["Unité de travail","Situation dangereuse","Risque","Facteur de pénibilité","Fréquence","Gravité","Maitrise : Moyens de prévention et/ou de protection existant",null,null,"G","F","Note","Maitrise","M","Note","Priorité / Evaluation du risque",null,"Maitrise : Moyens de prévention et/ou protection à mettre en place pour diminuer le risque",null,null,"Délai de réalisation \nEtat d’avancement","Responsable d'action","Coût","Pénibilité"]
[null,null,null,null,null,null,"Technique","Organisationnelle","Humaine",null,null,null,null,null,null,"Avant maitrise","Après maitrise","Technique","Organisationnelle","Humaine",null,null,null,"Effectif concerné","Proportion","Exposition"]
[null,null,null,{"$f":"VLOOKUP(C35,C$1:D$28,2,FALSE)","v":{"$error":"#N/A"}},null,null,null,null,null,{"$f":"IF(OR(F35=F$1),\"1\",IF(OR(F35=F$5),\"1\",IF(OR(F35=F$6),\"1\",IF(OR(F35=F$7),\"1\",IF(OR(F35=F$2),\"4\",IF(OR(F35=F$8),\"4\",IF(OR(F35=F$9),\"4\",IF(OR(F35=F$10),\"20\",IF(OR(F35=F$3),\"20\",IF(OR(F35=F$11),\"20\",IF(OR(F35=F$12),\"20\",IF(OR(F35=F$4),\"100\",IF(OR(F35=F$13),\"100\",IF(OR(F35=F$15),\"100\",IF(OR(F35=F$16),\"100\",\"0\")))))))))))))))","v":"0"},{"$f":"IF(OR(E35=E$10),\"10\",IF(OR(E35=E$11),\"50\",IF(OR(E35=E$9),\"10\",IF(OR(E35=E$8),\"10\",IF(OR(E35=E$7),\"4\",IF(OR(E35=E$6),\"4\",IF(OR(E35=E$5),\"1\",IF(OR(E35=E$1),\"1\",IF(OR(E35=E$2),\"4\",IF(OR(E35=E$3),\"10\",IF(OR(E35=E$4),\"50\",\"1\")))))))))))","v":"1"},{"$f":"J35*K35","v":0},null,{"$f":"IF(OR(M35=M$5),\"0,5\",IF(OR(M35=M$6),\"0,2\",IF(OR(M35=M$1),\"1\",IF(OR(M35=M$2),\"0,5\",IF(OR(M35=M$3),\"0,2\",IF(OR(M35=M$4),\"0,05\",\"1\"))))))","v":"1"},{"$f":"L35*N35","v":0},{"$f":"IF(OR(L35=0),\"/\",IF(OR(L35<10),\"4 / Faible\",IF(OR(L35<50),\"3 / Moyenne\",IF(OR(L35<=200),\"2 / Forte\",IF(OR(L35>200),\"1 / URGENT\")))))","v":"/"},{"$f":"IF(OR(O35=0),\"/\",IF(OR(O35<10),\"4 / Faible\",IF(OR(O35<50),\"3 / Moyenne\",IF(OR(O35<=200),\"2 / Forte\",IF(OR(O35>200),\"1 / URGENT\")))))","v":"/"},null,null,null,null,null,null,null,{"$f":"X35/Z$31","v":0}]
[null,null,null,{"$f":"VLOOKUP(C36,C$1:D$28,2,FALSE)","v":{"$error":"#N/A"}},null,null,null,null,null,{"$f":"IF(OR(F36=F$1),\"1\",IF(OR(F36=F$5),\"1\",IF(OR(F36=F$6),\"1\",IF(OR(F36=F$7),\"1\",IF(OR(F36=F$2),\"4\",IF(OR(F36=F$8),\"4\",IF(OR(F36=F$9),\"4\",IF(OR(F36=F$10),\"20\",IF(OR(F36=F$3),\"20\",IF(OR(F36=F$11),\"20\",IF(OR(F36=F$12),\"20\",IF(OR(F36=F$4),\"100\",IF(OR(F36=F$13),\"100\",IF(OR(F36=F$15),\"100\",IF(OR(F36=F$16),\"100\",\"0\")))))))))))))))","v":"0"},{"$f":"IF(OR(E36=E$10),\"10\",IF(OR(E36=E$11),\"50\",IF(OR(E36=E$9),\"10\",IF(OR(E36=E$8),\"10\",IF(OR(E36=E$7),\"4\",IF(OR(E36=E$6),\"4\",IF(OR(E36=E$5),\"1\",IF(OR(E36=E$1),\"1\",IF(OR(E36=E$2),\"4\",IF(OR(E36=E$3),\"10\",IF(OR(E36=E$4),\"50\",\"1\")))))))))))","v":"1"},{"$f":"J36*K36","v":0},null,{"$f":"IF(OR(M36=M$5),\"0,5\",IF(OR(M36=M$6),\"0,2\",IF(OR(M36=M$1),\"1\",IF(OR(M36=M$2),\"0,5\",IF(OR(M36=M$3),\"0,2\",IF(OR(M36=M$4),\"0,05\",\"1\"))))))","v":"1"},{"$f":"L36*N36","v":0},{"$f":"IF(OR(L36=0),\"/\",IF(OR(L36<10),\"4 / Faible\",IF(OR(L36<50),\"3 / Moyenne\",IF(OR(L36<=200),\"2 / Forte\",IF(OR(L36>200),\"1 / URGENT\")))))","v":"/"},{"$f":"IF(OR(O36=0),\"/\",IF(OR(O36<10),\"4 / Faible\",IF(OR(O36<50),\"3 / Moyenne\",IF(OR(O36<=200),\"2 / Forte\",IF(OR(O36>200),\"1 / URGENT\")))))","v":"/"},null,null,null,null,null,null,null,{"$f":"X36/Z$31","v":0}]
[null,null,null,{"$error":"#N/A"},null,null,null,null,null,"0","1",{"$f":"J37*K37","v":0},null,"1",{"$f":"L37*N37","v":0},{"$f":"IF(OR(L37=0),\"/\",IF(OR(L37<10),\"4 / Faible\",IF(OR(L37<50),\"3 / Moyenne\",IF(OR(L37<=200),\"2 / Forte\",IF(OR(L37>200),\"1 / URGENT\")))))","v":"/"},"/",null,null,null,null,null,null,null,0]
[" ",null,null,{"$error":"#N/A"},null,null,null,null,null,"0","1",0,null,"1",{"$f":"L38*N38","v":0},{"$f":"IF(OR(L38=0),\"/\",IF(OR(L38<10),\"4 / Faible\",IF(OR(L38<50),\"3 / Moyenne\",IF(OR(L38<=200),\"2 / Forte\",IF(OR(L38>200),\"1 / URGENT\")))))","v":"/"},"/",null,null,null,null,null,null,null,0]
[null,null,null,{"$error":"#N/A"},null,null,null,null,null,"0","1",0,null,"1",{"$f":"L39*N39","v":0},{"$f":"IF(OR(L39=0),\"/\",IF(OR(L39<10),\"4 / Faible\",IF(OR(L39<50),\"3 / Moyenne\",IF(OR(L39<=200),\"2 / Forte\",IF(OR(L39>200),\"1 / URGENT\")))))","v":"/"},"/",null,null,null,null,null,null,null,0]
[null,null,null,{"$error":"#N/A"},null,null,null,null,null,"0","1",0,null,"1",{"$f":"L40*N40","v":0},{"$f":"IF(OR(L40=0),\"/\",IF(OR(L40<10),\"4 / Faible\",IF(OR(L40<50),\"3 / Moyenne\",IF(OR(L40<=200),\"2 / Forte\",IF(OR(L40>200),\"1 / URGENT\")))))","v":"/"},"/",null,null,null,null,null,null,null,0]
[null,null,null,{"$error":"#N/A"},null,null,null,null,null,"0","1",0,null,"1",{"$f":"L41*N41","v":0},{"$f":"IF(OR(L41=0),\"/\",IF(OR(L41<10),\"4 / Faible\",IF(OR(L41<50),\"3 / Moyenne\",IF(OR(L41<=200),\"2 / Forte\",IF(OR(L41>200),\"1 / URGENT\")))))","v":"/"},"/",null,null,null,null,null,null,null,0]
[null,null,null,{"$error":"#N/A"},null,null,null,null,null,"0","1",0,null,"1",{"$f":"L42*N42","v":0},{"$f":"IF(OR(L42=0),\"/\",IF(OR(L42<10),\"4 / Faible\",IF(OR(L42<50),\"3 / Moyenne\",IF(OR(L42<=200),\"2 / Forte\",IF(OR(L42>200),\"1 / URGENT\")))))","v":"/"},"/",null,null,null,null,null,null,null,0]
[null,null,null,{"$error":"#N/A"},null,null,null,null,null,"0","1",0,null,"1",{"$f":"L43*N43","v":0},{"$f":"IF(OR(L43=0),\"/\",IF(OR(L43<10),\"4 / Faible\",IF(OR(L43<50),\"3 / Moyenne\",IF(OR(L43<=200),\"2 / Forte\",IF(OR(L43>200),\"1 / URGENT\")))))","v":"/"},"/",null,null,null,null,null,null,null,0]
[null,null,null,{"$error":"#N/A"},null,null,null,null,null,"0","1",0,null,"1",{"$f":"L44*N44","v":0},{"$f":"IF(OR(L44=0),\"/\",IF(OR(L44<10),\"4 / Faible\",IF(OR(L44<50),\"3 / Moyenne\",IF(OR(L44<=200),\"2 / Forte\",IF(OR(L44>200),\"1 / URGENT\")))))","v":"/"},"/",null,null,null,null,null,null,null,0]
[null,null,null,{"$error":"#N/A"},null,null,null,null,null,"0","1",0,null,"1",{"$f":"L45*N45","v":0},{"$f":"IF(OR(L45=0),\"/\",IF(OR(L45<10),\"4 / Faible\",IF(OR(L45<50),\"3 / Moyenne\",IF(OR(L45<=200),\"2 / Forte\",IF(OR(L45>200),\"1 / URGENT\")))))","v":"/"},"/",null,null,null,null,null,null,null,0]
[null,null,null,{"$error":"#N/A"},null,null,null,null,null,"0","1",0,null,"1",{"$f":"L46*N46","v":0},{"$f":"IF(OR(L46=0),\"/\",IF(OR(L46<10),\"4 / Faible\",IF(OR(L46<50),\"3 / Moyenne\",IF(OR(L46<=200),\"2 / Forte\",IF(OR(L46>200),\"1 / URGENT\")))))","v":"/"},"/",null,null,null,null,null,null,null,0]
[null,null,null,{"$error":"#N/A"},null,null,null,null,null,"0","1",0,null,"1",{"$f":"L47*N47","v":0},{"$f":"IF(OR(L47=0),\"/\",IF(OR(L47<10),\"4 / Faible\",IF(OR(L47<50),\"3 / Moyenne\",IF(OR(L47<=200),\"2 / Forte\",IF(OR(L47>200),\"1 / URGENT\")))))","v":"/"},"/",null,null,null,null,null,null,null,0]
[null,null,null,{"$error":"#N/A"},null,null,null,null,null,"0","1",0,null,"1",{"$f":"L48*N48","v":0},{"$f":"IF(OR(L48=0),\"/\",IF(OR(L48<10),\"4 / Faible\",IF(OR(L48<50),\"3 / Moyenne\",IF(OR(L48<=200),\"2 / Forte\",IF(OR(L48>200),\"1 / URGENT\")))))","v":"/"},"/",null,null,null,null,null,null,null,0]
[null,null,null,{"$error":"#N/A"},null,null,null,null,null,"0","1",0,null,"1",{"$f":"L49*N49","v":0},{"$f":"IF(OR(L49=0),\"/\",IF(OR(L49<10),\"4 / Faible\",IF(OR(L49<50),\"3 / Moyenne\",IF(OR(L49<=200),\"2 / Forte\",IF(OR(L49>200),\"1 / URGENT\")))))","v":"/"},"/",null,null,null,null,null,null,null,0]
[null,null,null,{"$error":"#N/A"},null,null,null,null,null,"0","1",0,null,"1",{"$f":"L50*N50","v":0},{"$f":"IF(OR(L50=0),\"/\",IF(OR(L50<10),\"4 / Faible\",IF(OR(L50<50),\"3 / Moyenne\",IF(OR(L50<=200),\"2 / Forte\",IF(OR(L50>200),\"1 / URGENT\")))))","v":"/"},"/",null,null,null,null,null,null,null,0]
[null,null,null,{"$error":"#N/A"},null,null,null,null,null,"0","1",0,null,"1",{"$f":"L51*N51","v":0},{"$f":"IF(OR(L51=0),\"/\",IF(OR(L51<10),\"4 / Faible\",IF(OR(L51<50),\"3 / Moyenne\",IF(OR(L51<=200),\"2 / Forte\",IF(OR(L51>200),\"1 / URGENT\")))))","v":"/"},"/",null,null,null,null,null,null,null,0]
[null,null,null,{"$error":"#N/A"},null,null,null,null,null,"0","1",0,null,"1",{"$f":"L52*N52","v":0},{"$f":"IF(OR(L52=0),\"/\",IF(OR(L52<10),\"4 / Faible\",IF(OR(L52<50),\"3 / Moyenne\",IF(OR(L52<=200),\"2 / Forte\",IF(OR(L52>200),\"1 / URGENT\")))))","v":"/"},"/",null,null,null,null,null,null,null,0]
[null,null,null,{"$error":"#N/A"},null,null,null,null,null,"0","1",0,null,"1",{"$f":"L53*N53","v":0},{"$f":"IF(OR(L53=0),\"/\",IF(OR(L53<10),\"4 / Faible\",IF(OR(L53<50),\"3 / Moyenne\",IF(OR(L53<=200),\"2 / Forte\",IF(OR(L53>200),\"1 / URGENT\")))))","v":"/"},"/",null,null,null,null,null,null,null,0]
[null,null,null,{"$error":"#N/A"},null,null,null,null,null,"0","1",0,null,"1",{"$f":"L54*N54","v":0},{"$f":"IF(OR(L54=0),\"/\",IF(OR(L54<10),\"4 / Faible\",IF(OR(L54<50),\"3 / Moyenne\",IF(OR(L54<=200),\"2 / Forte\",IF(OR(L54>200),\"1 / URGENT\")))))","v":"/"},"/",null,null,null,null,null,null,null,0]
[null,null,null,{"$error":"#N/A"},null,null,null,null,null,"0","1",0,null,"1",{"$f":"L55*N55","v":0},{"$f":"IF(OR(L55=0),\"/\",IF(OR(L55<10),\"4 / Faible\",IF(OR(L55<50),\"3 / Moyenne\",IF(OR(L55<=200),\"2 / Forte\",IF(OR(L55>200),\"1 / URGENT\")))))","v":"/"},"/",null,null,null,null,null,null,null,0]
[null,null,null,{"$error":"#N/A"},null,null,null,null,null,"0","1",0,null,"1",{"$f":"L56*N56","v":0},{"$f":"IF(OR(L56=0),\"/\",IF(OR(L56<10),\"4 / Faible\",IF(OR(L56<50),\"3 / Moyenne\",IF(OR(L56<=200),\"2 / Forte\",IF(OR(L56>200),\"1 / URGENT\")))))","v":"/"},"/",null,null,null,null,null,null,null,0]
[null,null,null,{"$error":"#N/A"},null,null,null,null,null,"0","1",0,null,"1",{"$f":"L57*N57","v":0},{"$f":"IF(OR(L57=0),\"/\",IF(OR(L57<10),\"4 / Faible\",IF(OR(L57<50),\"3 / Moyenne\",IF(OR(L57<=200),\"2 / Forte\",IF(OR(L57>200),\"1 / URGENT\")))))","v":"/"},"/",null,null,null,null,null,null,null,0]
[null,null,null,{"$error":"#N/A"},null,null,null,null,null,"0","1",0,null,"1",{"$f":"L58*N58","v":0},{"$f":"IF(OR(L58=0),\"/\",IF(OR(L58<10),\"4 / Faible\",IF(OR(L58<50),\"3 / Moyenne\",IF(OR(L58<=200),\"2 / Forte\",IF(OR(L58>200),\"1 / URGENT\")))))","v":"/"},"/",null,null,null,null,null,null,null,0]
[null,null,null,{"$error":"#N/A"},null,null,null,null,null,"0","1",0,null,"1",{"$f":"L59*N59","v":0},{"$f":"IF(OR(L59=0),\"/\",IF(OR(L59<10),\"4 / Faible\",IF(OR(L59<50),\"3 / Moyenne\",IF(OR(L59<=200),\"2 / Forte\",IF(OR(L59>200),\"1 / URGENT\")))))","v":"/"},"/",null,null,null,null,null,null,null,0]
[null,null,null,{"$error":"#N/A"},null,null,null,null,null,"0","1",0,null,"1",{"$f":"L60*N60","v":0},{"$f":"IF(OR(L60=0),\"/\",IF(OR(L60<10),\"4 / Faible\",IF(OR(L60<50),\"3 / Moyenne\",IF(OR(L60<=200),\"2 / Forte\",IF(OR(L60>200),\"1 / URGENT\")))))","v":"/"},"/",null,null,null,null,null,null,null,0]
[null,null,null,{"$error":"#N/A"},null,null,null,null,null,"0","1",0,null,"1",{"$f":"L61*N61","v":0},{"$f":"IF(OR(L61=0),\"/\",IF(OR(L61<10),\"4 / Faible\",IF(OR(L61<50),\"3 / Moyenne\",IF(OR(L61<=200),\"2 / Forte\",IF(OR(L61>200),\"1 / URGENT\")))))","v":"/"},"/",null,null,null,null,null,null,null,0]
[null,null,null,{"$error":"#N/A"},null,null,null,null,null,"0","1",0,null,"1",{"$f":"L62*N62","v":0},{"$f":"IF(OR(L62=0),\"/\",IF(OR(L62<10),\"4 / Faible\",IF(OR(L62<50),\"3 / Moyenne\",IF(OR(L62<=200),\"2 / Forte\",IF(OR(L62>200),\"1 / URGENT\")))))","v":"/"},"/",null,null,null,null,null,null,null,0]
[null,null,null,{"$error":"#N/A"},null,null,null,null,null,"0","1",0,null,"1",{"$f":"L63*N63","v":0},{"$f":"IF(OR(L63=0),\"/\",IF(OR(L63<10),\"4 / Faible\",IF(OR(L63<50),\"3 / Moyenne\",IF(OR(L63<=200),\"2 / Forte\",IF(OR(L63>200),\"1 / URGENT\")))))","v":"/"},"/",null,null,null,null,null,null,null,0]
[null,null,null,{"$error":"#N/A"},null,null,null,null,null,"0","1",0,null,"1",{"$f":"L64*N64","v":0},{"$f":"IF(OR(L64=0),\"/\",IF(OR(L64<10),\"4 / Faible\",IF(OR(L64<50),\"3 / Moyenne\",IF(OR(L64<=200),\"2 / Forte\",IF(OR(L64>200),\"1 / URGENT\")))))","v":"/"},"/",null,null,null,null,null,null,null,0]
[null,null,null,{"$error":"#N/A"},null,null,null,null,null,"0","1",0,null,"1",{"$f":"L65*N65","v":0},{"$f":"IF(OR(L65=0),\"/\",IF(OR(L65<10),\"4 / Faible\",IF(OR(L65<50),\"3 / Moyenne\",IF(OR(L65<=200),\"2 / Forte\",IF(OR(L65>200),\"1 / URGENT\")))))","v":"/"},"/",null,null,null,null,null,null,null,0]
[null,null,null,{"$error":"#N/A"},null,null,null,null,null,"0","1",0,null,"1",{"$f":"L66*N66","v":0},{"$f":"IF(OR(L66=0),\"/\",IF(OR(L66<10),\"4 / Faible\",IF(OR(L66<50),\"3 / Moyenne\",IF(OR(L66<=200),\"2 / Forte\",IF(OR(L66>200),\"1 / URGENT\")))))","v":"/"},"/",null,null,null,null,null,null,null,0]
[null,null,null,{"$error":"#N/A"},null,null,null,null,null,"0","1",0,null,"1",{"$f":"L67*N67","v":0},{"$f":"IF(OR(L67=0),\"/\",IF(OR(L67<10),\"4 / Faible\",IF(OR(L67<50),\"3 / Moyenne\",IF(OR(L67<=200),\"2 / Forte\",IF(OR(L67>200),\"1 / URGENT\")))))","v":"/"},"/",null,null,null,null,null,null,null,0]
[null,null,null,{"$error":"#N/A"},null,null,null,null,null,"0","1",0,null,"1",{"$f":"L68*N68","v":0},{"$f":"IF(OR(L68=0),\"/\",IF(OR(L68<10),\"4 / Faible\",IF(OR(L68<50),\"3 / Moyenne\",IF(OR(L68<=200),\"2 / Forte\",IF(OR(L68>200),\"1 / URGENT\")))))","v":"/"},"/",null,null,null,null,null,null,null,0]
[null,null,null,{"$error":"#N/A"},null,null,null,null,null,"0","1",0,null,"1",{"$f":"L69*N69","v":0},{"$f":"IF(OR(L69=0),\"/\",IF(OR(L69<10),\"4 / Faible\",IF(OR(L69<50),\"3 / Moyenne\",IF(OR(L69<=200),\"2 / Forte\",IF(OR(L69>200),\"1 / URGENT\")))))","v":"/"},"/",null,null,null,null,null,null,null,0]
[null,null,null,{"$error":"#N/A"},null,null,null,null,null,"0","1",0,null,"1",{"$f":"L70*N70","v":0},{"$f":"IF(OR(L70=0),\"/\",IF(OR(L70<10),\"4 / Faible\",IF(OR(L70<50),\"3 / Moyenne\",IF(OR(L70<=200),\"2 / Forte\",IF(OR(L70>200),\"1 / URGENT\")))))","v":"/"},"/",null,null,null,null,null,null,null,0]
[null,null,null,{"$error":"#N/A"},null,null,null,null,null,"0","1",0,null,"1",{"$f":"L71*N71","v":0},{"$f":"IF(OR(L71=0),\"/\",IF(OR(L71<10),\"4 / Faible\",IF(OR(L71<50),\"3 / Moyenne\",IF(OR(L71<=200),\"2 / Forte\",IF(OR(L71>200),\"1 / URGENT\")))))","v":"/"},"/",null,null,null,null,null,null,null,0]

{"sheet":"Pénibilité","index":3,"n_rows":46,"n_cols":6,"rows_kept":46,"cut":false,"hidden":false,"merged":[[12,2,13,2],[9,3,11,3],[12,3,13,3],[0,0,0,3],[7,3,8,3],[40,0,40,3],[41,0,41,3],[44,0,44,3],[34,1,34,2],[35,1,35,2],[36,0,37,0],[36,1,36,2],[36,3,37,3],[37,1,37,2],[14,1,14,2],[15,0,16,0],[21,0,22,0],[21,1,21,3],[15,3,16,3],[45,0,45,3],[3,0,3,3],[4,0,4,3],[32,0,33,0],[32,1,32,3],[23,2,23,3],[25,1,25,2],[26,0,27,0],[26,1,26,2],[27,1,27,2],[6,0,8,0],[6,1,6,3],[7,1,8,1],[7,2,8,2],[9,0,13,0],[12,1,13,1]]}
["Prévention de la pénibilité"]
[]
["Code du travail",null,null,null,null,"Retour DU"]
["« Art. D. 4161-2.-Les facteurs de risques professionnels et les seuils d'exposition mentionnés à l'article L. 4161-1 sont ainsi fixés :"]
["« 1° Au titre des contraintes physiques marquées :"]
[]
["FACTEUR DE RISQUES PROFESSIONNELS","SEUIL"]
[null,"Action ou situation","Intensité minimale","Durée minimale"]
[]
["a) Manutentions manuelles de charges définies à l'article R. 4541-2","Lever ou porter","Charge unitaire de 15 kilogrammes","600 heures / an"]
[null,"Pousser ou tirer","Charge unitaire de 250 kilogrammes"]
[null,"Déplacement du travailleur avec la charge ou prise de la charge au sol ou à une hauteur située au-dessus des épaules","Charge unitaire de 10 kilogrammes"]
[null,"Cumul de manutentions de charges","7,5 tonnes cumulées par jour","120 jours / an"]
[]
["b) Postures pénibles définies comme positions forcées des articulations","Maintien des bras en l'air à une hauteur située au dessus des épaules ou positions accroupies ou à genoux ou positions du torse en torsion à 30 degrés ou positions du torse fléchi à 45 degrés",null,"900 heures / an"]
["c) Vibrations mécaniques mentionnées à l'article R. 4441-1","Vibrations transmises aux mains et aux bras","Valeur d'exposition rapportée à une période de référence de 8 heures de 2,5 m/ s2","450 heures / an"]
[null,"Vibrations transmises à l'ensemble du corps","Valeur d'exposition rapportée à une période de référence de 8 heures de 0,5 m/ s2"]
[]
[]
["« 2° Au titre de l'environnement physique agressif :"]
[null,null,null,null,null,"Retour DU"]
["FACTEUR DE RISQUES PROFESSIONNELS","SEUIL"]
[null,"Action ou situation","Intensité minimale","Durée minimale"]
["a) Agents chimiques dangereux mentionnés aux articles R. 4412-3 et R. 4412-60, y compris les poussières et les fumées","Exposition à un agent chimique dangereux relevant d'une ou plusieurs classes ou catégories de danger définies à l'annexe I du règlement (CE) n° 1272/2008 et figurant dans un arrêté du ministre chargé du travail","Le seuil est déterminé, pour chacun des agents chimiques dangereux, par application d'une grille d'évaluation prenant en compte le type de pénétration, la classe d'émission ou de contact de l'agent chimique concerné, le procédé d'utilisation ou de fabrication, les mesures de protection collective ou individuelle mises en œuvre et la durée d'exposition, qui est définie par arrêté du ministre chargé du travail et du ministre chargé de la santé"]
["b) Activités exercées en milieu hyperbare définies à l'article R. 4461-1","Interventions ou travaux","1 200 hectopascals","60 interventions ou travaux / an"]
["c) Températures extrêmes","Température inférieure ou égale à 5 degrés Celsius ou au moins égale à 30 degrés Celsius",null,"900 heures par an"]
["d) Bruit mentionné à l'article R. 4431-1","Niveau d'exposition au bruit rapporté à une période de référence de huit heures d'au moins 80 décibels (A)",null,"600 heures par an"]
[null,"Exposition à un niveau de pression acoustique de crête au moins égal à 135 décibels (C)",null,"120 fois par an"]
[]
[]
["« 3° Au titre de certains rythmes de travail :"]
[]
["FACTEUR DE RISQUES PROFESSIONNELS","SEUIL"]
[null,"Action ou situation","Intensité minimale","Durée minimale"]
["a) Travail de nuit dans les conditions fixées aux articles L. 3122-29 à L. 3122-31","Une heure de travail entre 24 heures et 5 heures",null,"120 nuits par an"]
["b) Travail en équipes successives alternantes","Travail en équipes successives alternantes impliquant au minimum une heure de travail entre 24 heures et 5 heures",null,"50 nuits par an"]
["c) Travail répétitif caractérisé par la répétition d'un même geste, à une cadence contrainte, imposée ou non par le déplacement automatique d'une pièce ou par la rémunération à la pièce, avec un temps de cycle défini","Temps de cycle inférieur ou égal à 1 minute",null,"900 heures par an"]
[null,"30 actions techniques ou plus par minute avec un temps de cycle supérieur à 1 minute"]
[]
[]
["« Art. D. 4161-3.-L'exposition des travailleurs au regard des seuils mentionnés à l'article D. 4161-2 est appréciée après application des mesures de protection collective et individuelle."]
["« Lorsque la durée minimale d'exposition est décomptée en nombre d'heures an, le dépassement du seuil est apprécié en cumulant les durées pendant lesquelles se déroulent chacune des actions ou pendant lesquelles chacune des situations sont constatées."]
[]
[]
["« Art. D. 4161-4.-Pour les travailleurs mentionnés à l'article R. 4162-1, une fiche de prévention des expositions est établie. Une copie de la fiche de prévention des expositions est remise au travailleur en cas d'arrêt de travail d'au moins trente jours consécutif à un accident du travail ou une maladie professionnelle et d'au moins trois mois dans les autres cas. Elle est par ailleurs tenue à tout moment à sa disposition."]
["« L'employeur conserve par tout moyen les fiches de prévention des expositions de ses salariés pendant cinq ans après l'année à laquelle elles se rapportent. »",null,null,null,null,"Retour DU"]

{"sheet":"Fiche d'exposition","index":4,"n_rows":34,"n_cols":9,"rows_kept":34,"cut":false,"hidden":false,"merged":[[27,0,29,0],[30,0,32,0],[2,0,2,8],[0,0,0,8],[4,5,4,7],[4,8,5,8],[6,3,8,3],[6,4,8,4],[6,5,8,5],[6,6,8,6],[6,8,8,8],[4,0,5,0],[4,1,5,1],[4,2,5,2],[4,3,4,4],[30,8,32,8],[33,0,33,7],[15,0,17,0],[6,0,8,0],[9,0,11,0],[12,0,14,0],[18,0,20,0],[21,0,23,0],[24,0,26,0],[6,1,8,1],[6,2,8,2],[6,7,8,7],[30,5,32,5],[30,6,32,6],[30,7,32,7],[30,1,32,1],[30,2,32,2],[30,3,32,3],[30,4,32,4],[27,5,29,5],[27,6,29,6],[27,7,29,7],[27,8,29,8],[27,1,29,1],[27,2,29,2],[27,3,29,3],[27,4,29,4],[24,5,26,5],[24,6,26,6],[24,7,26,7],[24,8,26,8],[24,1,26,1],[24,2,26,2],[24,3,26,3],[24,4,26,4],[21,5,23,5],[21,6,23,6],[21,7,23,7],[21,8,23,8],[21,1,23,1],[21,2,23,2],[21,3,23,3],[21,4,23,4],[18,5,20,5],[18,6,20,6],[18,7,20,7],[18,8,20,8],[18,1,20,1],[18,2,20,2],[18,3,20,3],[18,4,20,4],[15,5,17,5],[15,6,17,6],[15,7,17,7],[15,8,17,8],[15,1,17,1],[15,2,17,2],[15,3,17,3],[15,4,17,4],[12,5,14,5],[12,6,14,6],[12,7,14,7],[12,8,14,8],[12,1,14,1],[12,2,14,2],[12,3,14,3],[12,4,14,4],[9,7,11,7],[9,8,11,8],[9,1,11,1],[9,2,11,2],[9,3,11,3],[9,4,11,4],[9,5,11,5],[9,6,11,6]]}
["Fiche de prévention des expositions à certains facteurs de risques professionnels"]
[]
["La fiche mentionnée à l’article L.4121-3-1 du code du travail comporte au moins les rubriques figurant dans le présent modèle. Cette fiche doit être actualisée en cas de modification des conditions d’exposition. Elle est communiquée au service de santé au travail et remise au travailleur à son départ de l’entreprise ou en cas d’arrêt de travail consécutif à un accident du travail ou une maladie professionnelle d’au moins 30 jours (3 mois pour autre motif). Conformément à l’article L.4121-3-1, le travailleur peut demander à l’employeur la rectification des informations figurant sur la présente fiche."]
["Nom :",null,null,"Prénom :",null,null,"Unité de travail concernée :",null,"Poste ou emploi occupé :"]
["Facteurs de risque énumérés à l’article D.4121-5","Non","Oui","Période d’exposition",null,"Mesure de prévention en place",null,null,"Commentaires, précisions, événements particuliers (résultats de mesurages, etc.)"]
[null,null,null,"Date de début","Date de fin","Organisationnelles","Collectives","Individuelles"]
["Manutention"]
[]
[]
["Postures pénibles"]
[]
[]
["Vibrations mécaniques"]
[]
[]
["Agents chimiques dangereux – Poussières – Fumées (sauf amiante*)"]
[]
[]
["Températures extrêmes"]
[]
[]
["Bruit"]
[]
[]
["Travail de nuit"]
[]
[]
["Travail en équipes successives altérantes"]
[]
[]
["Travail répétitif"]
[]
[]
["* l’exposition à l’amiante est consignée dans la fiche d’exposition prévue par l’article R.4412-110 du code du travail"]

{"sheet":"Aide Fiche de danger","index":5,"n_rows":823,"n_cols":5,"rows_kept":823,"cut":false,"hidden":false,"merged":[[1,0,1,1],[2,0,2,1],[10,7,10,9],[0,0,0,1]]}
["Définitions\nDanger ou phénomène dangereux : Cause capable de provoquer une lésion physique et/ou une atteinte à la santé\nSituation dangereuse : Toute situation dans laquelle une personne est exposée à un ou plusieurs dangers\nRisque : Probabilité d’apparition d’un dommage sur la personne en situation dangereuse\nDommage : Lésion physique et/ou une atteinte à la santé\nFacteur déclenchant : Evènement ayant déclenché le dommage"]
["Fiche de danger",null,null,null,"Site INRS"]
["Cliquez sur la fiche d'aide souhaitée",null,null,null,"www.inrs.fr"]
[]
["AMBIANCES THERMIQUES","MANQUE D’HYGIENE"]
["BIOLOGIQUE","MANUTENTION MANUELLE ET A L’ACTIVITE PHYSIQUE"]
["BRUIT","MANUTENTION MECANIQUE"]
["CHUTES","ORGANISATION DE LA SECURITE ET DES SECOURS"]
["CHUTES D’OBJETS","PSYCHOSOCIAL"]
["DEPLACEMENTS ET A LA CIRCULATION","PRODUITS CHIMIQUES"]
["DIVERS","RAYONNEMENTS IONISANTS"]
["ECLAIRAGE","RECOURS A DES INTERIMAIRES"]
["ELECTRICITE","SOUDURE",null,null,"Site du gouvernement"]
["INCENDIE OU D’EXPLOSION","TRAVAIL SUR ECRAN",null,null,"www.travailler-mieux.gouv.fr"]
["INTERVENTION D’ENTREPRISES EXTERIEURES","VIBRATIONS"]
["MACHINES ET AUX OUTILS"]
[]
[]
[]
[]
[]
[]
[]
[]
[]
[]
[]
[]
[]
["Retour au sommaire"]
[]
[null,null,null,null,"Site AST 74"]
[null,null,null,null,"www.ast74.fr"]
[]
[]
[]
[]
[]
[]
[]
[]
[]
[]
[]
[]
[]
[]
[]
[]
[]
[]
[]
[]
[]
[]
[]
[]
[]
[]
[]
[]
[]
["Retour au sommaire"]
[]
[]
[]
[]
[]
[]
[]
[null,null,null,null,"OPPBTP"]
[null,null,null,null,"www.preventionbtp.fr"]
[]
[]
[]
[]
[]
[]
[]
[]
[]
[]
[]
[]
[]
[]
[]
[]
[]
[]
[]
[]
[]
[]
[]
[]
[]
["Retour au sommaire"]
[]
[]
[]
[]
[]
[]
[]
[]
[]
[]
[]
[]
[]
[]
[]
[]
[]
[]
[]
[]
[]
[]
[]
[]
[]
[]
[]
[]
[]
[]
[]
[]
[]
[]
["Retour au sommaire"]
[]
[]
[]
[]
[]
[]
[]
[]
[]
[]
[]
[]
[]
[]
[]
[]
[]
[]
[]
[]
[]
[]
[]
[]
[]
[]
[]
[]
[]
[]
["Retour au sommaire"]
[]
[]
[]
[]
[]
[]
[]
[]
[]
[]
[]
[]
[]
[]
[]
[]
[]
[]
[]
[]
[]
[]
[]
[]
[]
[]
[]
[]
[]
[]
[]
[]
[]
[]
[]
[]
[]
[]
[]
["Retour au sommaire"]
[]
[]
[]
[]
[]
[]
[]
[]
[]
[]
[]
[]
[]
[]
[]
[]
[]
[]
[]
[]
[]
[]
[]
[]
[]
[]
[]
[]
[]
[]
[]
[]
[]
[]
[]
[]
[]
[]
[]
[]
[]
[]
[]
[]
[]
[]
[]
["Retour au sommaire"]
[]
[]
[]
[]
[]
[]
[]
[]
[]
[]
[]
[]
[]
[]
[]
[]
[]
[]
[]
[]
[]
[]
[]
[]
[]
[]
[]
[]
[]
[]
[]
[]
[]
[]
[]
["Retour au sommaire"]
[]
[]
[]
[]
[]
[]
[]
[]
[]
[]
[]
[]
[]
[]
[]
[]
[]
[]
[]
[]
[]
[]
[]
[]
[]
[]
[]
[]
[]
[]
[]
[]
[]
["Retour au sommaire"]
[]
[]
[]
[]
[]
[]
[]
[]
[]
[]
[]
[]
[]
[]
[]
[]
[]
[]
[]
[]
[]
[]
[]
[]
[]
[]
[]
[]
[]
[]
[]
[]
[]
[]
[]
[]
["Retour au sommaire"]
[]
[]
[]
[]
[]
[]
[]
[]
[]
[]
[]
[]
[]
[]
[]
[]
[]
[]
[]
[]
[]
[]
[]
[]
[]
[]
[]
[]
[]
[]
[]
[]
[]
[]
[]
[]
[]
[]
["Retour au sommaire"]
[]
[]
[]
[]
[]
[]
[]
[]
[]
[]
[]
[]
[]
[]
[]
[]
[]
[]
[]
[]
[]
[]
[]
[]
[]
[]
[]
[]
[]
[]
[]
[]
[]
["Retour au sommaire"]
[]
[]
[]
[]
[]
[]
[]
[]
[]
[]
[]
[]
[]
[]
[]
[]
[]
[]
[]
[]
[]
[]
[]
[]
[]
[]
[]
[]
[]
[]
[]
[]
[]
[]
[]
[]
["Retour au sommaire"]
[]
[]
[]
[]
[]
[]
[]
[]
[]
[]
[]
[]
[]
[]
[]
[]
[]
[]
[]
[]
[]
[]
[]
[]
[]
[]
[]
[]
[]
[]
[]
["Retour au sommaire"]
[]
[]
[]
[]
[]
[]
[]
[]
[]
[]
[]
[]
[]
[]
[]
[]
[]
[]
[]
[]
[]
[]
[]
[]
[]
[]
[]
[]
[]
[]
[]
[]
[]
[]
[]
[]
[]
["Retour au sommaire"]
[]
[]
[]
[]
[]
[]
[]
[]
[]
[]
[]
[]
[]
[]
[]
[]
[]
[]
[]
[]
[]
[]
[]
[]
[]
[]
[]
[]
[]
[]
[]
[]
[]
[]
[]
["Retour au sommaire"]
[]
[]
[]
[]
[]
[]
[]
[]
[]
[]
[]
[]
[]
[]
[]
[]
[]
[]
[]
[]
[]
[]
[]
[]
[]
[]
[]
[]
[]
[]
[]
[]
[]
[]
[]
[]
[]
[]
[]
[]
[]
[]
["Retour au sommaire"]
[]
[]
[]
[]
[]
[]
[]
[]
[]
[]
[]
[]
[]
[]
[]
[]
[]
[]
[]
[]
[]
[]
[]
[]
[]
[]
[]
[]
[]
[]
[]
[]
[]
[]
[]
[]
[]
["Retour au sommaire"]
[]
[]
[]
[]
[]
[]
[]
[]
[]
[]
[]
[]
[]
[]
[]
[]
[]
[]
[]
[]
[]
[]
[]
[]
[]
[]
[]
[]
[]
[]
[]
[]
[]
[]
["Retour au sommaire"]
[]
[]
[]
[]
[]
[]
[]
[]
[]
[]
[]
[]
[]
[]
[]
[]
[]
[]
[]
[]
[]
[]
[]
[]
[]
[]
[]
[]
[]
[]
["Retour au sommaire"]
[]
[]
[]
[]
[]
[]
[]
[]
[]
[]
[]
[]
[]
[]
[]
[]
[]
[]
[]
[]
[]
[]
[]
[]
[]
[]
[]
[]
[]
[]
[]
["Retour au sommaire"]
[]
[]
[]
[]
[]
[]
[]
[]
[]
[]
[]
[]
[]
[]
[]
[]
[]
[]
[]
[]
[]
[]
[]
[]
[]
[]
[]
["Retour au sommaire"]
[]
["Retour au sommaire"]
[]
[]
[]
[]
[]
[]
[]
[]
[]
[]
[]
[]
[]
[]
[]
[]
[]
[]
[]
[]
[]
[]
[]
["Retour au sommaire"]
[]
[]
[]
[]
[]
[]
[]
[]
[]
[]
[]
[]
[]
[]
["Retour au sommaire"]